[Event "Live Chess"]
[Site "Chess.com"]
[Date "2024.06.01"]
[Round "-"]
[White "PureDashingOctopus"]
[Black "TC2304"]
[Result "1-0"]
[WhiteElo "2220"]
[BlackElo "2334"]
[TimeControl "300"]
[EndTime "10:09:49 PDT"]
[Termination "PureDashingOctopus won by resignation"]

1. e4 {[%clk 0:04:57.8]} 1... Nc6 {[%clk 0:04:55.4]} 2. Nf3 {[%clk 0:04:56.1]}
2... d6 {[%clk 0:04:54.6]} 3. d4 {[%clk 0:04:54.4]} 3... Nf6 {[%clk 0:04:54.1]}
4. Nc3 {[%clk 0:04:53]} 4... g6 {[%clk 0:04:53.6]} 5. Be3 {[%clk 0:04:51]} 5...
Bg7 {[%clk 0:04:53.1]} 6. h3 {[%clk 0:04:49.3]} 6... O-O {[%clk 0:04:52.5]} 7.
Qd2 {[%clk 0:04:48.5]} 7... e5 {[%clk 0:04:52.2]} 8. d5 {[%clk 0:04:47.3]} 8...
Nd4 {[%clk 0:04:45.8]} 9. Nxd4 {[%clk 0:04:45.4]} 9... exd4 {[%clk 0:04:45.7]}
10. Bxd4 {[%clk 0:04:44.8]} 10... Re8 {[%clk 0:04:39.6]} 11. f3 {[%clk
0:04:43.4]} 11... c5 {[%clk 0:04:18.5]} 12. dxc6 {[%clk 0:04:41.9]} 12... bxc6
{[%clk 0:04:18.4]} 13. O-O-O {[%clk 0:04:40.1]} 13... d5 {[%clk 0:03:57.4]} 14.
exd5 {[%clk 0:04:37.7]} 14... cxd5 {[%clk 0:03:54.9]} 15. Bb5 {[%clk 0:04:33.7]}
15... Re6 {[%clk 0:03:39.8]} 16. g4 {[%clk 0:04:27.4]} 16... Qa5 {[%clk
0:03:20.2]} 17. g5 {[%clk 0:04:23.6]} 17... Nh5 {[%clk 0:03:13.4]} 18. Bxg7
{[%clk 0:04:21.7]} 18... Nxg7 {[%clk 0:03:12.5]} 19. Qxd5 {[%clk 0:04:19.8]}
19... Rb8 {[%clk 0:02:39.1]} 20. Qd8+ {[%clk 0:04:17.9]} 20... Qxd8 {[%clk
0:02:37.7]} 21. Rxd8+ {[%clk 0:04:17.5]} 21... Ne8 {[%clk 0:02:36.9]} 22. Rxe8+
{[%clk 0:04:16.3]} 22... Kg7 {[%clk 0:02:34.4]} 23. Rd8 {[%clk 0:04:08.1]} 23...
a6 {[%clk 0:02:24.2]} 24. Bd7 {[%clk 0:03:58]} 1-0

[Event "Live Chess"]
[Site "Chess.com"]
[Date "2024.06.01"]
[Round "-"]
[White "bill77678"]
[Black "Keithdfg"]
[Result "1-0"]
[WhiteElo "1819"]
[BlackElo "1754"]
[TimeControl "300"]
[EndTime "10:09:54 PDT"]
[Termination "bill77678 won by resignation"]

1. e4 {[%clk 0:04:58.1]} 1... d6 {[%clk 0:04:59.6]} 2. d4 {[%clk 0:04:56.8]}
2... Nf6 {[%clk 0:04:58.3]} 3. Nc3 {[%clk 0:04:54.8]} 3... Nbd7 {[%clk
0:04:56.9]} 4. Nf3 {[%clk 0:04:52.3]} 4... e5 {[%clk 0:04:54.8]} 5. Bd3 {[%clk
0:04:47.7]} 5... h6 {[%clk 0:04:53.8]} 6. O-O {[%clk 0:04:46.6]} 6... c6 {[%clk
0:04:53]} 7. dxe5 {[%clk 0:04:45.1]} 7... dxe5 {[%clk 0:04:51.6]} 8. Be3 {[%clk
0:04:42.7]} 8... Qc7 {[%clk 0:04:50.7]} 9. h3 {[%clk 0:04:41.5]} 9... g6 {[%clk
0:04:49.6]} 10. Qe2 {[%clk 0:04:40]} 10... Bg7 {[%clk 0:04:48.1]} 11. Rfd1
{[%clk 0:04:39.1]} 11... O-O {[%clk 0:04:46.8]} 12. a3 {[%clk 0:04:37]} 12...
Re8 {[%clk 0:04:45.7]} 13. Na2 {[%clk 0:04:35.9]} 13... Nf8 {[%clk 0:04:41.6]}
14. Rd2 {[%clk 0:04:33.6]} 14... Ne6 {[%clk 0:04:39.8]} 15. Rad1 {[%clk
0:04:28.7]} 15... Nh5 {[%clk 0:04:37.2]} 16. Bc4 {[%clk 0:04:15.2]} 16... Nhf4
{[%clk 0:04:34.9]} 17. Qf1 {[%clk 0:04:13.3]} 17... Bf8 {[%clk 0:04:30.9]} 18.
Bxf4 {[%clk 0:04:02.9]} 18... exf4 {[%clk 0:04:20.5]} 19. Bxe6 {[%clk
0:03:48.8]} 19... Bxe6 {[%clk 0:04:18]} 20. b3 {[%clk 0:03:48.2]} 20... Bxa3
{[%clk 0:04:14]} 21. c4 {[%clk 0:03:44.7]} 21... a5 {[%clk 0:04:07.6]} 22. Nc3
{[%clk 0:03:41]} 22... Bb4 {[%clk 0:04:04.4]} 23. Rd3 {[%clk 0:03:39.5]} 23...
Rad8 {[%clk 0:04:01.9]} 24. Rxd8 {[%clk 0:03:36.9]} 24... Rxd8 {[%clk
0:04:00.6]} 25. Rxd8+ {[%clk 0:03:36.4]} 25... Qxd8 {[%clk 0:03:59.5]} 26. Qd1
{[%clk 0:03:35.4]} 26... Qxd1+ {[%clk 0:03:51.3]} 27. Nxd1 {[%clk 0:03:35.3]}
27... a4 {[%clk 0:03:47.3]} 28. bxa4 {[%clk 0:03:29.4]} 28... Bxc4 {[%clk
0:03:45.8]} 29. Nb2 {[%clk 0:03:23.1]} 29... Bb3 {[%clk 0:03:43.6]} 30. Nd4
{[%clk 0:03:21.5]} 30... Ba2 {[%clk 0:03:29.8]} 31. Nd3 {[%clk 0:03:19.2]} 31...
Bc3 {[%clk 0:03:26]} 32. Ne2 {[%clk 0:03:16.1]} 32... g5 {[%clk 0:03:24.9]} 33.
Nxc3 {[%clk 0:03:14.7]} 1-0

[Event "Live Chess"]
[Site "Chess.com"]
[Date "2024.06.01"]
[Round "-"]
[White "GwaryTek"]
[Black "NottheBishopSacrifice"]
[Result "0-1"]
[WhiteElo "1896"]
[BlackElo "2171"]
[TimeControl "300"]
[EndTime "10:10:01 PDT"]
[Termination "NottheBishopSacrifice won by resignation"]

1. d4 {[%clk 0:04:56.6]} 1... c6 {[%clk 0:04:59.9]} 2. c4 {[%clk 0:04:54.9]}
2... d5 {[%clk 0:04:59.8]} 3. Nc3 {[%clk 0:04:54.3]} 3... Nf6 {[%clk 0:04:58.5]}
4. Nf3 {[%clk 0:04:54.2]} 4... dxc4 {[%clk 0:04:57.7]} 5. a4 {[%clk 0:04:52.6]}
5... Bf5 {[%clk 0:04:57.2]} 6. g3 {[%clk 0:04:49.6]} 6... e6 {[%clk 0:04:54]} 7.
Bg2 {[%clk 0:04:47.9]} 7... Nbd7 {[%clk 0:04:53.6]} 8. O-O {[%clk 0:04:46.8]}
8... a5 {[%clk 0:04:52.2]} 9. Re1 {[%clk 0:04:46]} 9... Bb4 {[%clk 0:04:51.1]}
10. Nh4 {[%clk 0:04:38.1]} 10... O-O {[%clk 0:04:45.6]} 11. e4 {[%clk
0:04:24.6]} 11... Bg4 {[%clk 0:04:33.8]} 12. Qc2 {[%clk 0:04:07.2]} 12... e5
{[%clk 0:04:30.4]} 13. Be3 {[%clk 0:04:01.5]} 13... exd4 {[%clk 0:04:24.4]} 14.
Bxd4 {[%clk 0:04:00.6]} 14... c5 {[%clk 0:04:23.8]} 15. Be3 {[%clk 0:03:51.5]}
15... Ne5 {[%clk 0:04:22.1]} 16. h3 {[%clk 0:03:49.6]} 16... Be6 {[%clk
0:04:19.3]} 17. Rad1 {[%clk 0:03:39]} 17... Nd3 {[%clk 0:04:17.9]} 18. e5 {[%clk
0:03:21.3]} 18... Nxe1 {[%clk 0:04:11.4]} 19. Rxe1 {[%clk 0:03:17.9]} 19... Nd5
{[%clk 0:04:09.1]} 20. Bxd5 {[%clk 0:02:21.5]} 20... Bxc3 {[%clk 0:04:04.6]} 21.
Qxc3 {[%clk 0:01:59.1]} 21... Qxd5 {[%clk 0:04:02.5]} 22. Ng2 {[%clk 0:01:51.7]}
22... Qd3 {[%clk 0:03:59.4]} 23. Qc1 {[%clk 0:01:47]} 23... Rfd8 {[%clk
0:03:55.3]} 24. Nf4 {[%clk 0:01:44.8]} 24... Qe4 {[%clk 0:03:54.4]} 25. Bxc5
{[%clk 0:01:40.6]} 25... Qf3 {[%clk 0:03:53.2]} 26. Bd6 {[%clk 0:01:32.3]} 26...
Bd5 {[%clk 0:03:46.8]} 27. Kh2 {[%clk 0:01:26.4]} 27... Bc6 {[%clk 0:03:42.8]}
28. Re3 {[%clk 0:01:19.9]} 28... Qxf2+ {[%clk 0:03:41.5]} 0-1

[Event "Live Chess"]
[Site "Chess.com"]
[Date "2024.06.01"]
[Round "-"]
[White "Queensandpawns"]
[Black "defenderalist"]
[Result "1-0"]
[WhiteElo "2474"]
[BlackElo "1495"]
[TimeControl "300"]
[EndTime "10:10:02 PDT"]
[Termination "Queensandpawns won by resignation"]

1. e4 {[%clk 0:04:59.3]} 1... c5 {[%clk 0:04:56.2]} 2. d4 {[%clk 0:04:58.3]}
2... d6 {[%clk 0:04:56.1]} 3. c3 {[%clk 0:04:58.2]} 3... cxd4 {[%clk 0:04:55.3]}
4. Bc4 {[%clk 0:04:57.9]} 4... e6 {[%clk 0:04:53.3]} 5. Nf3 {[%clk 0:04:55.5]}
5... Nc6 {[%clk 0:04:51.9]} 6. O-O {[%clk 0:04:54.5]} 6... a6 {[%clk 0:04:49.9]}
7. cxd4 {[%clk 0:04:53.5]} 7... b5 {[%clk 0:04:48.8]} 8. Bb3 {[%clk 0:04:52.3]}
8... Bb7 {[%clk 0:04:48.4]} 9. d5 {[%clk 0:04:51.9]} 9... Ne5 {[%clk 0:04:42.9]}
10. Nxe5 {[%clk 0:04:49.9]} 10... dxe5 {[%clk 0:04:42.8]} 11. dxe6 {[%clk
0:04:48.9]} 11... Qxd1 {[%clk 0:04:40.1]} 12. Rxd1 {[%clk 0:04:48.8]} 12... fxe6
{[%clk 0:04:39.2]} 13. Bxe6 {[%clk 0:04:48.7]} 13... Bxe4 {[%clk 0:04:33.8]} 14.
Nc3 {[%clk 0:04:47.7]} 14... Nf6 {[%clk 0:04:25.5]} 15. Nxe4 {[%clk 0:04:45.7]}
15... Nxe4 {[%clk 0:04:24.6]} 16. Bd5 {[%clk 0:04:45.4]} 16... Nf6 {[%clk
0:04:19.3]} 17. Bxa8 {[%clk 0:04:44.3]} 1-0

[Event "Live Chess"]
[Site "Chess.com"]
[Date "2024.06.01"]
[Round "-"]
[White "MaximKhimchenko"]
[Black "DoctorMantisTobogganMD"]
[Result "1-0"]
[WhiteElo "1807"]
[BlackElo "2191"]
[TimeControl "300"]
[EndTime "10:10:10 PDT"]
[Termination "MaximKhimchenko won by resignation"]

1. g3 {[%clk 0:04:57]} 1... h5 {[%clk 0:04:57.4]} 2. h4 {[%clk 0:04:53.9]} 2...
g6 {[%clk 0:04:56.2]} 3. Nf3 {[%clk 0:04:52.5]} 3... Bg7 {[%clk 0:04:55.9]} 4.
Bg2 {[%clk 0:04:51.9]} 4... d5 {[%clk 0:04:55.3]} 5. c4 {[%clk 0:04:50.8]} 5...
Nf6 {[%clk 0:04:54.2]} 6. cxd5 {[%clk 0:04:50]} 6... Nxd5 {[%clk 0:04:53.2]} 7.
d4 {[%clk 0:04:49.1]} 7... O-O {[%clk 0:04:51.8]} 8. Nc3 {[%clk 0:04:48.1]} 8...
Nxc3 {[%clk 0:04:51.2]} 9. bxc3 {[%clk 0:04:46.6]} 9... c6 {[%clk 0:04:50.6]}
10. e4 {[%clk 0:04:45.5]} 10... Bg4 {[%clk 0:04:49.5]} 11. Bh3 {[%clk 0:04:44]}
11... Bxh3 {[%clk 0:04:47.2]} 12. Rxh3 {[%clk 0:04:43.9]} 12... c5 {[%clk
0:04:43.1]} 13. Ng5 {[%clk 0:04:36.6]} 13... cxd4 {[%clk 0:04:40.5]} 14. g4
{[%clk 0:04:35.4]} 14... dxc3 {[%clk 0:04:34]} 15. Rd3 {[%clk 0:04:33.2]} 15...
Qa5 {[%clk 0:04:16.2]} 16. Kf1 {[%clk 0:04:18.1]} 16... c2 {[%clk 0:03:51.8]}
17. Qxc2 {[%clk 0:04:04.6]} 17... Bxa1 {[%clk 0:03:50.4]} 18. gxh5 {[%clk
0:03:57.4]} 18... Na6 {[%clk 0:03:24.6]} 19. hxg6 {[%clk 0:03:42.7]} 19... Rac8
{[%clk 0:03:04.5]} 20. gxf7+ {[%clk 0:03:40.8]} 20... Rxf7 {[%clk 0:03:04.4]}
21. Qxc8+ {[%clk 0:03:39]} 21... Kg7 {[%clk 0:03:03.7]} 22. Nxf7 {[%clk
0:03:32.4]} 22... Kxf7 {[%clk 0:03:03.6]} 23. Rf3+ {[%clk 0:03:30.7]} 23... Bf6
{[%clk 0:02:59.8]} 24. Qc4+ {[%clk 0:03:24.7]} 24... Ke8 {[%clk 0:01:19.3]} 25.
Qg8+ {[%clk 0:03:13.3]} 25... Kd7 {[%clk 0:01:17.2]} 26. Rd3+ {[%clk 0:03:12]}
26... Kc6 {[%clk 0:01:14.5]} 27. Qd5+ {[%clk 0:02:57.5]} 27... Qxd5 {[%clk
0:01:12.7]} 28. exd5+ {[%clk 0:02:57.4]} 28... Kd6 {[%clk 0:01:11.1]} 29. h5
{[%clk 0:02:54.7]} 29... Kd7 {[%clk 0:01:01.2]} 30. h6 {[%clk 0:02:53.6]} 30...
Nc5 {[%clk 0:01:00.5]} 31. Rf3 {[%clk 0:02:47.5]} 31... Be5 {[%clk 0:00:49]} 32.
Bf4 {[%clk 0:02:44]} 32... Bd4 {[%clk 0:00:46.5]} 33. Be3 {[%clk 0:02:41.8]} 1-0

[Event "Live Chess"]
[Site "Chess.com"]
[Date "2024.06.01"]
[Round "-"]
[White "StoreySniper"]
[Black "ogpin"]
[Result "1-0"]
[WhiteElo "2549"]
[BlackElo "2235"]
[TimeControl "300"]
[EndTime "10:10:28 PDT"]
[Termination "StoreySniper won by checkmate"]

1. c4 {[%clk 0:04:58]} 1... g6 {[%clk 0:04:58.6]} 2. g3 {[%clk 0:04:57.7]} 2...
Bg7 {[%clk 0:04:58.5]} 3. Bg2 {[%clk 0:04:57.3]} 3... Nf6 {[%clk 0:04:55.4]} 4.
Nc3 {[%clk 0:04:56.7]} 4... O-O {[%clk 0:04:54.4]} 5. d4 {[%clk 0:04:55.8]} 5...
c6 {[%clk 0:04:53.6]} 6. e4 {[%clk 0:04:47.2]} 6... d6 {[%clk 0:04:50.5]} 7.
Nge2 {[%clk 0:04:43.8]} 7... a6 {[%clk 0:04:50.3]} 8. a4 {[%clk 0:04:41.6]} 8...
a5 {[%clk 0:04:47.7]} 9. Bg5 {[%clk 0:04:38.3]} 9... h6 {[%clk 0:04:45.8]} 10.
Be3 {[%clk 0:04:36.7]} 10... Na6 {[%clk 0:04:37.1]} 11. h3 {[%clk 0:04:33]}
11... e5 {[%clk 0:04:27.3]} 12. d5 {[%clk 0:04:08]} 12... Nb4 {[%clk 0:04:24.7]}
13. Qd2 {[%clk 0:04:05.9]} 13... Re8 {[%clk 0:04:14.1]} 14. O-O {[%clk
0:04:01.5]} 14... Kh7 {[%clk 0:04:11.8]} 15. f4 {[%clk 0:03:55.1]} 15... cxd5
{[%clk 0:04:08.2]} 16. cxd5 {[%clk 0:03:53.4]} 16... b6 {[%clk 0:03:45.1]} 17.
fxe5 {[%clk 0:03:45.2]} 17... dxe5 {[%clk 0:03:43.4]} 18. Nb5 {[%clk 0:03:33.6]}
18... Ba6 {[%clk 0:03:41.7]} 19. Nec3 {[%clk 0:03:32.7]} 19... Rc8 {[%clk
0:03:35.7]} 20. Rac1 {[%clk 0:03:30.5]} 20... Qd7 {[%clk 0:03:22.2]} 21. Bxb6
{[%clk 0:03:20.2]} 21... Nh5 {[%clk 0:03:15.3]} 22. Kh2 {[%clk 0:03:06.5]} 22...
Bf6 {[%clk 0:03:04.9]} 23. Be3 {[%clk 0:02:57.1]} 23... Bg7 {[%clk 0:02:51]} 24.
h4 {[%clk 0:02:37.3]} 24... Rc4 {[%clk 0:02:35.6]} 25. Bh3 {[%clk 0:02:32]}
25... Qd8 {[%clk 0:02:26.9]} 26. Rxf7 {[%clk 0:02:19.9]} 26... Rf8 {[%clk
0:02:25.3]} 27. Rcf1 {[%clk 0:02:07.2]} 27... Rxf7 {[%clk 0:02:17.8]} 28. Rxf7
{[%clk 0:02:05.6]} 28... Bxb5 {[%clk 0:02:17.7]} 29. axb5 {[%clk 0:02:02.9]}
29... Qe8 {[%clk 0:02:03.7]} 30. Be6 {[%clk 0:01:58.2]} 30... Rd4 {[%clk
0:01:57.3]} 31. Bxd4 {[%clk 0:01:20.1]} 31... exd4 {[%clk 0:01:57.2]} 32. Ne2
{[%clk 0:01:07.5]} 32... d3 {[%clk 0:01:54.9]} 33. Nf4 {[%clk 0:00:54.4]} 33...
Nf6 {[%clk 0:01:51.9]} 34. Nxd3 {[%clk 0:00:38.8]} 34... Nxe4 {[%clk 0:01:49.6]}
35. Qe3 {[%clk 0:00:35.5]} 35... Nxd3 {[%clk 0:01:40.3]} 36. Qxe4 {[%clk
0:00:32]} 36... Ne5 {[%clk 0:01:21.4]} 37. Rxg7+ {[%clk 0:00:30.4]} 37... Kxg7
{[%clk 0:01:19.4]} 38. Qxe5+ {[%clk 0:00:29.9]} 38... Kh7 {[%clk 0:01:19.3]} 39.
Qf6 {[%clk 0:00:25.1]} 39... h5 {[%clk 0:01:15.5]} 40. Qf7+ {[%clk 0:00:24.2]}
40... Qxf7 {[%clk 0:01:15]} 41. Bxf7 {[%clk 0:00:24.1]} 41... Kg7 {[%clk
0:01:14.9]} 42. Bxg6 {[%clk 0:00:23.3]} 42... Kxg6 {[%clk 0:01:12.8]} 43. b6
{[%clk 0:00:22.8]} 43... a4 {[%clk 0:01:10.3]} 44. b7 {[%clk 0:00:22.4]} 44...
a3 {[%clk 0:01:10.2]} 45. bxa3 {[%clk 0:00:21.3]} 45... Kf5 {[%clk 0:01:08]} 46.
b8=Q {[%clk 0:00:20.6]} 46... Kg4 {[%clk 0:01:07.9]} 47. Qf4# {[%clk 0:00:19.2]}
1-0

[Event "Live Chess"]
[Site "Chess.com"]
[Date "2024.06.01"]
[Round "-"]
[White "LL220284LL"]
[Black "KyryloPoluliakh"]
[Result "1-0"]
[WhiteElo "2575"]
[BlackElo "1479"]
[TimeControl "300"]
[EndTime "10:10:39 PDT"]
[Termination "LL220284LL won by checkmate"]

1. e4 {[%clk 0:04:57.5]} 1... c5 {[%clk 0:04:56.5]} 2. d4 {[%clk 0:04:56]} 2...
cxd4 {[%clk 0:04:54.4]} 3. c3 {[%clk 0:04:55.9]} 3... dxc3 {[%clk 0:04:52.6]} 4.
Nxc3 {[%clk 0:04:55.8]} 4... Nc6 {[%clk 0:04:49.1]} 5. Bc4 {[%clk 0:04:55.4]}
5... g6 {[%clk 0:04:45.1]} 6. Nf3 {[%clk 0:04:54.6]} 6... Bg7 {[%clk 0:04:40.2]}
7. O-O {[%clk 0:04:53.3]} 7... Nh6 {[%clk 0:04:33.8]} 8. Bg5 {[%clk 0:04:52]}
8... O-O {[%clk 0:04:30.9]} 9. h3 {[%clk 0:04:49]} 9... Kh8 {[%clk 0:04:25.1]}
10. Qd2 {[%clk 0:04:47.2]} 10... Ng8 {[%clk 0:04:23.3]} 11. Rad1 {[%clk
0:04:45.1]} 11... d6 {[%clk 0:04:18.9]} 12. Rfe1 {[%clk 0:04:41.3]} 12... Bd7
{[%clk 0:04:15.3]} 13. a3 {[%clk 0:04:33.6]} 13... Ne5 {[%clk 0:04:11.8]} 14.
Nxe5 {[%clk 0:04:32.2]} 14... Bxe5 {[%clk 0:04:10.4]} 15. Nd5 {[%clk 0:04:29]}
15... Bc6 {[%clk 0:04:00.5]} 16. f4 {[%clk 0:04:26.9]} 16... Bg7 {[%clk
0:03:55.3]} 17. f5 {[%clk 0:04:24.2]} 17... Bxd5 {[%clk 0:03:43.2]} 18. Bxd5
{[%clk 0:04:21.9]} 18... Rb8 {[%clk 0:03:38.7]} 19. fxg6 {[%clk 0:04:12.4]}
19... hxg6 {[%clk 0:03:30]} 20. Qf4 {[%clk 0:04:10]} 20... Nf6 {[%clk
0:03:23.2]} 21. Qh4+ {[%clk 0:04:08.2]} 21... Nh7 {[%clk 0:03:20.2]} 22. Bxe7
{[%clk 0:04:05.2]} 22... Qb6+ {[%clk 0:03:14.6]} 23. Kh1 {[%clk 0:04:02.4]}
23... Rfc8 {[%clk 0:03:10.2]} 24. Bxf7 {[%clk 0:03:59.6]} 24... d5 {[%clk
0:02:55.6]} 25. exd5 {[%clk 0:03:57.9]} 25... Rc7 {[%clk 0:02:51]} 26. d6 {[%clk
0:03:55.7]} 26... Rd7 {[%clk 0:02:46.4]} 27. Bxg6 {[%clk 0:03:54]} 27... Bh6
{[%clk 0:02:38.8]} 28. Qxh6 {[%clk 0:03:52.7]} 28... Rxe7 {[%clk 0:02:38.3]} 29.
Rxe7 {[%clk 0:03:50.5]} 29... Kg8 {[%clk 0:02:33.4]} 30. Qxh7+ {[%clk
0:03:50.4]} 30... Kf8 {[%clk 0:02:32.5]} 31. Qg7# {[%clk 0:03:50]} 1-0

[Event "Live Chess"]
[Site "Chess.com"]
[Date "2024.06.01"]
[Round "-"]
[White "Larchikov"]
[Black "Tilbs_12"]
[Result "0-1"]
[WhiteElo "1946"]
[BlackElo "1658"]
[TimeControl "300"]
[EndTime "10:10:49 PDT"]
[Termination "Tilbs_12 won by resignation"]

1. e4 {[%clk 0:04:55.7]} 1... c6 {[%clk 0:04:58.5]} 2. d4 {[%clk 0:04:52.9]}
2... d5 {[%clk 0:04:57.3]} 3. e5 {[%clk 0:04:52.8]} 3... c5 {[%clk 0:04:55.5]}
4. c3 {[%clk 0:04:51.6]} 4... Nc6 {[%clk 0:04:54]} 5. Nf3 {[%clk 0:04:50.2]}
5... cxd4 {[%clk 0:04:53.1]} 6. cxd4 {[%clk 0:04:48.7]} 6... Bg4 {[%clk
0:04:52.4]} 7. Be2 {[%clk 0:04:44.5]} 7... e6 {[%clk 0:04:51.2]} 8. O-O {[%clk
0:04:42.3]} 8... Nge7 {[%clk 0:04:45.7]} 9. h3 {[%clk 0:04:38.6]} 9... Bxf3
{[%clk 0:04:44.7]} 10. Bxf3 {[%clk 0:04:38.5]} 10... Qb6 {[%clk 0:04:43.1]} 11.
Nc3 {[%clk 0:04:31]} 11... Qxd4 {[%clk 0:04:40.1]} 12. Nb5 {[%clk 0:04:27.1]}
12... Qxd1 {[%clk 0:04:38.4]} 13. Rxd1 {[%clk 0:04:22.4]} 13... Rc8 {[%clk
0:04:29.5]} 14. Nd6+ {[%clk 0:04:20.8]} 14... Kd7 {[%clk 0:04:24.3]} 15. Nxc8
{[%clk 0:04:19.4]} 15... Kxc8 {[%clk 0:04:24.2]} 16. Be3 {[%clk 0:04:14.5]}
16... Ng6 {[%clk 0:04:21.8]} 17. Rac1 {[%clk 0:04:12]} 17... Kb8 {[%clk
0:04:19]} 18. Be2 {[%clk 0:04:05.8]} 18... Ngxe5 {[%clk 0:04:17.3]} 19. f4
{[%clk 0:04:02.6]} 19... Nd7 {[%clk 0:04:11.5]} 20. Bb5 {[%clk 0:04:00.5]} 20...
Kc7 {[%clk 0:03:55.8]} 21. Bxa7 {[%clk 0:03:56.6]} 21... Nb6 {[%clk 0:03:49]}
22. Bxb6+ {[%clk 0:03:53.2]} 22... Kxb6 {[%clk 0:03:48.1]} 23. Bxc6 {[%clk
0:03:49.8]} 23... bxc6 {[%clk 0:03:48]} 24. Rd3 {[%clk 0:03:47]} 24... Bd6
{[%clk 0:03:43.7]} 25. g3 {[%clk 0:03:43.1]} 25... Ra8 {[%clk 0:03:41.7]} 26. a3
{[%clk 0:03:41.9]} 26... c5 {[%clk 0:03:39.8]} 27. Kg2 {[%clk 0:03:36.9]} 27...
Kc6 {[%clk 0:03:32.2]} 28. Kf3 {[%clk 0:03:30.4]} 28... c4 {[%clk 0:03:31]} 29.
Rd2 {[%clk 0:03:25.8]} 29... Rb8 {[%clk 0:03:22.8]} 30. g4 {[%clk 0:03:16.3]}
30... h6 {[%clk 0:03:18.7]} 31. f5 {[%clk 0:03:11.5]} 31... Be5 {[%clk
0:03:07.4]} 32. Rcc2 {[%clk 0:03:02.1]} 32... Rb3+ {[%clk 0:03:03]} 33. Kg2
{[%clk 0:02:55.9]} 33... Rg3+ {[%clk 0:02:49.5]} 34. Kf2 {[%clk 0:02:54.3]}
34... Rxh3 {[%clk 0:02:48.5]} 35. fxe6 {[%clk 0:02:48.3]} 35... fxe6 {[%clk
0:02:46.4]} 36. Re2 {[%clk 0:02:46.6]} 36... Kd6 {[%clk 0:02:45.5]} 37. a4
{[%clk 0:02:42.5]} 37... Rb3 {[%clk 0:02:38.1]} 38. Rc1 {[%clk 0:02:27.6]} 38...
Bxb2 {[%clk 0:02:16.1]} 39. Rce1 {[%clk 0:02:16.1]} 39... e5 {[%clk 0:02:14.8]}
40. a5 {[%clk 0:02:13]} 40... c3 {[%clk 0:02:09.7]} 41. a6 {[%clk 0:02:04.9]}
41... Ra3 {[%clk 0:02:05.2]} 42. Rxe5 {[%clk 0:01:49.3]} 42... c2 {[%clk
0:02:02.3]} 43. Re6+ {[%clk 0:01:48]} 43... Kc5 {[%clk 0:02:00.8]} 44. Re7
{[%clk 0:01:23.6]} 44... Rxa6 {[%clk 0:01:48.4]} 45. R7e2 {[%clk 0:01:01]} 45...
c1=Q {[%clk 0:01:26.2]} 46. Rxc1+ {[%clk 0:00:59]} 46... Bxc1 {[%clk 0:01:25]}
47. Rc2+ {[%clk 0:00:58.9]} 47... Kd6 {[%clk 0:01:22.4]} 48. Rxc1 {[%clk
0:00:58.8]} 48... Ra3 {[%clk 0:01:20.8]} 49. Re1 {[%clk 0:00:56.1]} 49... d4
{[%clk 0:01:18.3]} 50. Rd1 {[%clk 0:00:54.4]} 50... Kc5 {[%clk 0:01:14.5]} 51.
Rc1+ {[%clk 0:00:51.6]} 51... Kd5 {[%clk 0:01:13.8]} 52. Rc7 {[%clk 0:00:49.7]}
52... g5 {[%clk 0:01:03.5]} 53. Rh7 {[%clk 0:00:43.8]} 53... Ra6 {[%clk
0:01:01.7]} 54. Ke2 {[%clk 0:00:39.5]} 54... Re6+ {[%clk 0:00:43]} 55. Kd2
{[%clk 0:00:38]} 55... Re3 {[%clk 0:00:42]} 56. Rxh6 {[%clk 0:00:36.1]} 56...
Rg3 {[%clk 0:00:41.3]} 57. Rh8 {[%clk 0:00:33.1]} 57... Rxg4 {[%clk 0:00:40.4]}
58. Kd3 {[%clk 0:00:30.6]} 58... Rg3+ {[%clk 0:00:38.9]} 59. Kd2 {[%clk
0:00:30.2]} 59... g4 {[%clk 0:00:37.2]} 60. Rd8+ {[%clk 0:00:29.8]} 60... Ke4
{[%clk 0:00:36.2]} 61. Re8+ {[%clk 0:00:29.2]} 61... Kf3 {[%clk 0:00:35]} 62.
Rf8+ {[%clk 0:00:28.1]} 62... Kg2 {[%clk 0:00:33.7]} 63. Rd8 {[%clk 0:00:26.5]}
63... d3 {[%clk 0:00:31.3]} 64. Rf8 {[%clk 0:00:25.7]} 64... Rf3 {[%clk
0:00:28]} 65. Rg8 {[%clk 0:00:25.3]} 65... g3 {[%clk 0:00:26.8]} 66. Kd1 {[%clk
0:00:24.6]} 66... Kf2 {[%clk 0:00:24.2]} 67. Ra8 {[%clk 0:00:19.8]} 67... g2
{[%clk 0:00:20.9]} 68. Ra2+ {[%clk 0:00:18.5]} 68... Kg3 {[%clk 0:00:19.2]} 69.
Kd2 {[%clk 0:00:16.7]} 69... g1=Q {[%clk 0:00:16.5]} 70. Kc3 {[%clk 0:00:16.2]}
70... Qc5+ {[%clk 0:00:14.8]} 71. Kd2 {[%clk 0:00:14.1]} 71... Rf2+ {[%clk
0:00:14]} 72. Kxd3 {[%clk 0:00:13.4]} 72... Rxa2 {[%clk 0:00:13.9]} 0-1